fUST/lending_fUST_20240923
["ID","MTS","AMOUNT","RATE_DAILY","PERIOD"]
[338894682,1727035845818,-151.0,0.00021361,2]
[338894683,1727035845829,-151.0,0.00021361,2]
[338894684,1727035845840,-151.0,0.00021361,2]
[338894685,1727035845857,-151.0,0.00021361,2]
[338894686,1727035845867,-151.0,0.00021361,2]
[338894687,1727035845877,-151.0,0.00021361,2]
[338894688,1727035845886,-151.0,0.00021361,2]
[338894689,1727035845896,-151.0,0.00021361,2]
[338894690,1727035845905,-1000.0,0.00021361,2]
[338894691,1727035845915,-1000.0,0.00021361,2]
[338894692,1727035845924,-1000.0,0.00021361,2]
[338894694,1727035846005,-1000.0,0.00021361,2]
[338894695,1727035846025,-1000.0,0.00021361,2]
[338894696,1727035846035,-1000.0,0.00021361,2]
[338894697,1727035846044,-1000.0,0.00021361,2]
[338894698,1727035846053,-1000.0,0.00021361,2]
[338894699,1727035846062,-1000.0,0.00021361,2]
[338894700,1727035846071,-1000.0,0.00021361,2]
[338894701,1727035846080,-1000.0,0.00021361,2]
[338894702,1727035846090,-1000.0,0.00021361,2]
[338894703,1727035846101,-1000.0,0.00021361,2]
[338894704,1727035846110,-1000.0,0.00021361,2]
[338894705,1727035846119,-1000.0,0.00021361,2]
[338894706,1727035846128,-1000.0,0.00021361,2]
[338894707,1727035846138,-1000.0,0.00021361,2]
[338894708,1727035846147,-1000.0,0.00021361,2]
[338894709,1727035846158,-1000.0,0.00021361,2]
[338894710,1727035846167,-1000.0,0.00021361,2]
[338894711,1727035846177,-1000.0,0.00021361,2]
[338894712,1727035846186,-1000.0,0.00021361,2]
[338894713,1727035846196,-1000.0,0.00021361,2]
[338894714,1727035846205,-1000.0,0.00021361,2]
[338894715,1727035846214,-1000.0,0.00021361,2]
[338894716,1727035846223,-1000.0,0.00021361,2]
[338894717,1727035846232,-1000.0,0.00021361,2]
[338894718,1727035846242,-1000.0,0.00021361,2]
[338894719,1727035846251,-1000.0,0.00021361,2]
[338894720,1727035846260,-1000.0,0.00021361,2]
[338894721,1727035846269,-1000.0,0.00021361,2]
[338894722,1727035846278,-1000.0,0.00021361,2]
[338894723,1727035846287,-1000.0,0.00021361,2]
[338894724,1727035846297,-1000.0,0.00021361,2]
[338894725,1727035846306,-1000.0,0.00021361,2]
[338894726,1727035846315,-1000.0,0.00021361,2]
[338894727,1727035846324,-1000.0,0.00021361,2]
[338894728,1727035846334,-1000.0,0.00021361,2]
[338894729,1727035846344,-1000.0,0.00021361,2]
[338894730,1727035846354,-1000.0,0.00021361,2]
[338894731,1727035846364,-1028.660167,0.00021361,2]
[338894732,1727035846373,-151.0,0.00021361,2]
[338894733,1727035846383,-151.0,0.00021361,2]
[338894734,1727035846392,-153.266844,0.00021361,2]
[338894735,1727035846402,-151.0,0.00021361,2]
[338894736,1727035846413,-153.266844,0.00021361,2]
[338894737,1727035846423,-151.0,0.00021361,2]
[338894738,1727035846434,-420.300099,0.00021361,2]
[338894739,1727035846443,-420.300099,0.00021361,2]
[338894740,1727035846453,-151.268019,0.00021361,2]
[338894741,1727035846462,-151.0,0.00021361,2]
[338894742,1727035846471,-151.268019,0.00021361,2]
[338894743,1727035846480,-151.0,0.00021361,2]
[338894744,1727035846489,-2014.717358,0.00021361,2]
[338894745,1727035846498,-2014.717358,0.00021361,2]
[338894746,1727035846507,-5525.986398,0.00021361,2]
[338894747,1727035846516,-5525.986398,0.00021361,2]
[338894748,1727035846525,-877.570684,0.00021361,2]
[338894749,1727035846534,-877.570684,0.00021361,2]
[338894750,1727035846543,-1987.88674,0.00021361,2]
[338894751,1727035846553,-1987.88674,0.00021361,2]
[338894752,1727035846563,-1017.543906,0.00021361,2]
[338894753,1727035846572,-1017.543906,0.00021361,2]
[338894754,1727035846581,-151.0,0.00021361,2]
[338894755,1727035846590,-818.259335,0.00021361,2]
[338894756,1727035846601,-818.259335,0.00021361,2]
[338894757,1727035846611,-151.0,0.00021361,2]
[338894758,1727035846620,-151.0,0.00021361,2]
[338894759,1727035846630,-151.0,0.00021361,2]
[338894760,1727035846639,-170.585669,0.00021361,2]
[338894761,1727035846648,-170.585669,0.00021361,2]
[338894762,1727035846657,-1791.288609,0.00021361,2]
[338894763,1727035846667,-1791.288609,0.00021361,2]
[338894764,1727035846676,-477.173741,0.00021361,2]
[338894765,1727035846685,-477.173741,0.00021361,2]
[338894766,1727035846694,-1476.26991,0.00021361,2]
[338894767,1727035846704,-1476.26991,0.00021361,2]
[338894768,1727035846713,-297.977605,0.00021361,2]
[338894769,1727035846723,-651.307974,0.00021361,2]
[338894770,1727035846732,-297.977605,0.00021361,2]
[338894771,1727035846742,-651.307974,0.00021361,2]
[338894772,1727035846752,-336.605711,0.00021361,2]
[338894773,1727035846761,-336.605711,0.00021361,2]
[338894774,1727035846771,-151.0,0.00021361,2]
[338894775,1727035846781,-151.0,0.00021361,2]
[338894776,1727035846790,-602.836695,0.00021361,2]
[338894777,1727035846800,-602.836695,0.00021361,2]
[338894778,1727035846809,-151.0,0.00021361,2]
[338894779,1727035846819,-433.18014,0.00021361,2]
[338894780,1727035846829,-433.18014,0.00021361,2]
[338894781,1727035846838,-151.0,0.00021361,2]
[338894782,1727035846850,-151.0,0.00021361,2]
[338894783,1727035846859,-168.206517,0.00021361,2]
[338894784,1727035846869,-168.206517,0.00021361,2]
[338894785,1727035846878,-722.251436,0.00021361,2]
[338894786,1727035846887,-722.251436,0.00021361,2]
[338894787,1727035846897,-969.570127,0.00021361,2]
[338894788,1727035846906,-969.570127,0.00021361,2]
[338894789,1727035846916,-151.0,0.00021361,2]
[338894790,1727035846925,-151.0,0.00021361,2]
[338894791,1727035846934,-155.439925,0.00021361,2]
[338894792,1727035846943,-331.081023,0.00021361,2]
[338894793,1727035846952,-331.081023,0.00021361,2]
[338894794,1727035846961,-195.530058,0.00021361,2]
[338894795,1727035846970,-195.530058,0.00021361,2]
[338894796,1727035846979,-483.05176,0.00021361,2]
[338894797,1727035846988,-483.05176,0.00021361,2]
[338894798,1727035846998,-543.669945,0.00021361,2]
[338894799,1727035847007,-543.669945,0.00021361,2]
[338894800,1727035847015,-151.0,0.00021361,2]
[338894801,1727035847024,-151.0,0.00021361,2]
[338894802,1727035847033,-151.0,0.00021361,2]
[338894803,1727035847043,-151.0,0.0002137,2]
[338894804,1727035847052,-151.0,0.0002137,2]
[338894805,1727035847061,-151.0,0.0002137,2]
[338894806,1727035847070,-177.485725,0.0002137,2]
[338894807,1727035847079,-177.485725,0.0002137,2]
[338894808,1727035847089,-151.0,0.00021371,2]
[338894809,1727035847099,-151.0,0.00021371,2]
[338894810,1727035847108,-151.0,0.00021371,2]
[338894811,1727035847117,-151.0,0.00021371,2]
[338894812,1727035847126,-151.0,0.00021371,2]
[338894813,1727035847135,-151.0,0.00021371,2]
[338894814,1727035847144,-151.0,0.00021371,2]
[338894815,1727035847155,-177.485725,0.00021371,2]
[338894816,1727035847163,-177.485725,0.00021371,2]
[338894817,1727035847172,-151.0,0.00021371,2]
[338894818,1727035847183,-151.0,0.00021371,2]
[338894819,1727035847192,-151.0,0.00021371,2]
[338894820,1727035847201,-160.619752,0.00021371,2]
[338894821,1727035847210,-160.619752,0.00021371,2]
[338894822,1727035847220,-151.0,0.00021371,2]
[338894823,1727035847229,-151.0,0.00021371,2]
[338894824,1727035847238,-151.0,0.00021371,2]
[338894825,1727035847247,-151.0,0.00021371,2]
[338894826,1727035847257,-151.0,0.00021371,2]
[338894827,1727035847266,-151.0,0.00021371,2]
[338894828,1727035847275,-151.0,0.00021371,2]
[338894829,1727035847284,-151.0,0.00021371,2]
[338894830,1727035847294,-151.0,0.00021371,2]
[338894831,1727035847308,-157.302679,0.00021371,2]
[338894832,1727035847318,-151.0,0.00021371,2]
[338894833,1727035847326,-151.268019,0.00021371,2]
[338894834,1727035847335,-151.0,0.00021371,2]
[338894835,1727035847346,-151.268019,0.00021371,2]
[338894836,1727035847357,-276.949662,0.00021371,2]
[338894837,1727035847366,-2014.717358,0.00021371,2]
[338894838,1727035847376,-2014.717358,0.00021371,2]
[338894839,1727035847385,-5525.986398,0.00021371,2]
[338894840,1727035847395,-5525.986398,0.00021371,2]
[338894841,1727035847404,-877.570684,0.00021371,2]
[338894842,1727035847413,-877.570684,0.00021371,2]
[338894843,1727035847422,-1987.88674,0.00021371,2]
[338894844,1727035847431,-1987.88674,0.00021371,2]
[338894845,1727035847441,-1987.88674,0.00021371,2]
[338894846,1727035847450,-1987.88674,0.00021371,2]
[338894847,1727035847460,-1017.543906,0.00021371,2]
[338894848,1727035847469,-1017.543906,0.00021371,2]
[338894849,1727035847478,-190.972435,0.00021371,2]
[338894850,1727035847487,-818.259335,0.00021371,2]
[338894851,1727035847496,-818.259335,0.00021371,2]
[338894852,1727035847505,-818.259335,0.00021371,2]
[338894853,1727035847515,-818.259335,0.00021371,2]
[338894854,1727035847524,-151.0,0.00021371,2]
[338894855,1727035847534,-151.0,0.00021371,2]
[338894856,1727035847543,-151.0,0.00021371,2]
[338894857,1727035847553,-201.778431,0.00021371,2]
[338894858,1727035847562,-170.585669,0.00021371,2]
[338894859,1727035847571,-170.585669,0.00021371,2]
[338894860,1727035847580,-477.173741,0.00021371,2]
[338894861,1727035847589,-477.173741,0.00021371,2]
[338894862,1727035847600,-477.173741,0.00021371,2]
[338894863,1727035847609,-477.173741,0.00021371,2]
[338894864,1727035847619,-1476.26991,0.00021371,2]
[338894865,1727035847628,-1476.26991,0.00021371,2]
[338894866,1727035847637,-297.977605,0.00021371,2]
[338894867,1727035847646,-651.307974,0.00021371,2]
[338894868,1727035847655,-297.977605,0.00021371,2]
[338894869,1727035847664,-651.307974,0.00021371,2]
[338894870,1727035847673,-336.605711,0.00021371,2]
[338894871,1727035847682,-336.605711,0.00021371,2]
[338894872,1727035847691,-151.0,0.00021371,2]
[338894873,1727035847701,-151.0,0.00021371,2]
[338894874,1727035847711,-168.206517,0.00021371,2]
[338894875,1727035847720,-168.206517,0.00021371,2]
[338894876,1727035847730,-722.251436,0.00021371,2]
[338894877,1727035847739,-722.251436,0.00021371,2]
[338894878,1727035847749,-969.570127,0.00021371,2]
[338894879,1727035847758,-969.570127,0.00021371,2]
[338894880,1727035847767,-151.0,0.00021371,2]
[338894881,1727035847776,-151.0,0.00021371,2]
[338894882,1727035847786,-331.081023,0.00021371,2]
[338894883,1727035847795,-331.081023,0.00021371,2]
[338894884,1727035847804,-195.530058,0.00021371,2]
[338894885,1727035847889,-195.530058,0.00021371,2]
[338894886,1727035847899,-483.05176,0.00021371,2]
[338894887,1727035847909,-483.05176,0.00021371,2]
[338894888,1727035847918,-151.0,0.00021371,2]
[338894889,1727035847928,-151.0,0.00021371,2]
[338894890,1727035847937,-151.0,0.00021381,2]
[338894891,1727035847947,-151.0,0.00021381,2]
[338894892,1727035847956,-151.0,0.00021381,2]
[338894893,1727035847965,-151.0,0.00021381,2]
[338894894,1727035847974,-151.0,0.00021381,2]
[338894895,1727035847983,-151.0,0.00021381,2]
[338894896,1727035847992,-151.0,0.00021381,2]
[338894897,1727035848001,-151.0,0.00021381,2]
[338894898,1727035848011,-151.0,0.00021381,2]
[338894899,1727035848021,-152.060727,0.00021381,2]
[338894900,1727035848032,-152.279788,0.00021381,2]
[338894901,1727035848042,-177.485725,0.00021381,2]
[338894902,1727035848052,-177.485725,0.00021381,2]
[338894903,1727035848062,-177.485725,0.00021381,2]
[338894904,1727035848073,-177.485725,0.00021381,2]
[338894905,1727035848082,-151.0,0.00021381,2]
[338894906,1727035848091,-151.0,0.00021381,2]
[338894907,1727035848102,-262.531411,0.00021381,2]
[338894908,1727035848111,-160.619752,0.00021381,2]
[338894909,1727035848120,-160.619752,0.00021381,2]
[338894910,1727035848129,-160.619752,0.00021381,2]
[338894911,1727035848139,-160.619752,0.00021381,2]
[338894912,1727035848148,-151.0,0.00021381,2]
[338894913,1727035848158,-151.0,0.00021381,2]
[338894914,1727035848167,-151.0,0.00021381,2]
[338894915,1727035848176,-151.0,0.00021381,2]
[338894916,1727035848187,-155.552467,0.00021381,2]
[338894917,1727035848196,-151.0,0.00021381,2]
[338894918,1727035848206,-151.0,0.00021381,2]
[338894919,1727035848219,-151.0,0.00021381,2]
[338894920,1727035848228,-151.0,0.00021381,2]
[338894921,1727035848238,-166.782961,0.00021381,2]
[338894922,1727035848247,-151.0,0.00021381,2]
[338894923,1727035848258,-151.0,0.00021381,2]
[338894924,1727035848267,-151.0,0.00021381,2]
[338894925,1727035848276,-151.0,0.00021381,2]
[338894926,1727035848286,-151.0,0.00021381,2]
[338894927,1727035848295,-178.229532,0.00021381,2]
[338894928,1727035848309,-153.266844,0.00021381,2]
[338894929,1727035848317,-153.266844,0.00021381,2]
[338894930,1727035848328,-152.050852,0.00021381,2]
[338894931,1727035848337,-420.300099,0.00021381,2]
[338894932,1727035848349,-420.300099,0.00021381,2]
[338894933,1727035848360,-420.300099,0.00021381,2]
[338894934,1727035848369,-420.300099,0.00021381,2]
[338894935,1727035848378,-2014.717358,0.00021381,2]
[338894936,1727035848387,-2014.717358,0.00021381,2]
[338894937,1727035848396,-5525.986398,0.00021381,2]
[338894938,1727035848405,-5525.986398,0.00021381,2]
[338894939,1727035848416,-877.570684,0.00021381,2]
[338894940,1727035848426,-877.570684,0.00021381,2]
[338894941,1727035848435,-1017.543906,0.00021381,2]
[338894942,1727035848444,-1017.543906,0.00021381,2]
[338894943,1727035848454,-151.0,0.00021381,2]
[338894944,1727035848464,-170.585669,0.00021381,2]
[338894945,1727035848473,-170.585669,0.00021381,2]
[338894946,1727035848482,-1791.288609,0.00021381,2]
[338894947,1727035848492,-1791.288609,0.00021381,2]
[338894948,1727035848501,-151.0,0.00021381,2]
[338894949,1727035848510,-602.836695,0.00021381,2]
[338894950,1727035848520,-602.836695,0.00021381,2]
[338894951,1727035848530,-433.18014,0.00021381,2]
[338894952,1727035848541,-433.18014,0.00021381,2]
[338894953,1727035848551,-543.669945,0.00021381,2]
[338894954,1727035848562,-543.669945,0.00021381,2]
[338894955,1727035848571,-151.0,0.00021381,2]
[338894956,1727035848581,-1987.88674,0.0002139,2]
[338894957,1727035848594,-1987.88674,0.0002139,2]
[338894958,1727035848607,-818.259335,0.0002139,2]
[338894959,1727035848617,-818.259335,0.0002139,2]
[338894960,1727035848627,-151.0,0.0002139,2]
[338894961,1727035848637,-477.173741,0.0002139,2]
[338894962,1727035848648,-477.173741,0.0002139,2]
[338894963,1727035848657,-151.0,0.0002139,2]
[338894964,1727035848667,-151.0,0.0002139,2]
[338894965,1727035848677,-168.206517,0.0002139,2]
[338894966,1727035848687,-168.206517,0.0002139,2]
[338894967,1727035848696,-722.251436,0.0002139,2]
[338894968,1727035848705,-722.251436,0.0002139,2]
[338894969,1727035848715,-969.570127,0.0002139,2]
[338894970,1727035848724,-969.570127,0.0002139,2]
[338894971,1727035848734,-151.0,0.0002139,2]
[338894972,1727035848744,-151.0,0.0002139,2]
[338894973,1727035848754,-331.081023,0.0002139,2]
[338894974,1727035848763,-331.081023,0.0002139,2]
[338894975,1727035848774,-195.530058,0.0002139,2]
[338894976,1727035848784,-195.530058,0.0002139,2]
[338894977,1727035848793,-483.05176,0.0002139,2]
[338894978,1727035848803,-483.05176,0.0002139,2]
[338894979,1727035848814,-151.0,0.00021391,2]
[338894980,1727035848824,-151.0,0.00021391,2]
[338894981,1727035848835,-151.0,0.00021391,2]
[338894982,1727035848846,-151.0,0.00021391,2]
[338894983,1727035848858,-151.0,0.00021391,2]
[338894984,1727035848867,-160.619752,0.00021391,2]
[338894985,1727035848878,-160.619752,0.00021391,2]
[338894986,1727035848887,-151.0,0.00021391,2]
[338894987,1727035848898,-151.0,0.00021391,2]
[338894988,1727035848908,-151.0,0.00021391,2]
[338894989,1727035848918,-151.268019,0.00021391,2]
[338894990,1727035848927,-151.0,0.00021391,2]
[338894991,1727035848937,-151.268019,0.00021391,2]
[338894992,1727035848947,-151.0,0.000214,2]
[338894993,1727035848956,-151.0,0.000214,2]
[338894994,1727035848966,-177.485725,0.000214,2]
[338894995,1727035848975,-177.485725,0.000214,2]
[338894996,1727035848986,-151.0,0.000214,2]
[338894997,1727035848996,-150.112233,0.000214,5]
[338894998,1727035849006,-151.0,0.000214,2]
[338894999,1727035849017,-151.0,0.000214,2]
[338895000,1727035849026,-151.0,0.000214,2]
[338895001,1727035849035,-211.036628,0.000214,2]
[338895002,1727035849045,-151.0,0.000214,2]
[338895003,1727035849055,-153.266844,0.000214,2]
[338895004,1727035849064,-153.266844,0.000214,2]
[338895005,1727035849074,-2014.717358,0.000214,2]
[338895006,1727035849084,-2014.71735,0.000214,2]
[338895007,1727035849094,-5525.986398,0.000214,2]
[338895008,1727035849105,-5525.986398,0.000214,2]
[338895009,1727035849115,-877.570684,0.000214,2]
[338895010,1727035849123,-877.570684,0.000214,2]
[338895011,1727035849133,-1017.543906,0.000214,2]
[338895012,1727035849142,-1017.543906,0.000214,2]
[338895013,1727035849153,-151.0,0.000214,2]
[338895014,1727035849162,-170.585669,0.000214,2]
[338895015,1727035849172,-170.585669,0.000214,2]
[338895016,1727035849182,-1476.26991,0.000214,2]
[338895017,1727035849192,-3000.0,0.000214,2]
[338895018,1727035849202,-1476.26991,0.000214,2]
[338895019,1727035849211,-297.977605,0.000214,2]
[338895020,1727035849221,-651.307974,0.000214,2]
[338895021,1727035849230,-297.977605,0.000214,2]
[338895022,1727035849240,-651.307974,0.000214,2]
[338895023,1727035849249,-336.605711,0.000214,2]
[338895024,1727035849259,-336.605711,0.000214,2]
[338895025,1727035849268,-151.0,0.000214,2]
[338895026,1727035849279,-150.112233,0.000214,4]
[338895027,1727035849288,-150.112233,0.000214,3]
[338895028,1727035849299,-150.112233,0.000214,3]
[338895029,1727035849310,-151.0,0.00021401,2]
[338895030,1727035849322,-151.0,0.00021401,2]
[338895031,1727035849332,-151.0,0.0002141,2]
[338895032,1727035849343,-151.0,0.0002141,2]
[338895033,1727035849355,-196.325821,0.0002141,2]
[338895034,1727035849374,-177.485725,0.0002141,2]
[338895035,1727035849384,-177.485725,0.0002141,2]
[338895036,1727035849394,-151.0,0.0002141,2]
[338895037,1727035849405,-160.619752,0.0002141,2]
[338895038,1727035849415,-160.619752,0.0002141,2]
[338895039,1727035849424,-151.0,0.0002141,2]
[338895040,1727035849433,-151.0,0.0002141,2]
[338895041,1727035849443,-420.300099,0.0002141,2]
[338895042,1727035849453,-420.300099,0.0002141,2]
[338895043,1727035849462,-1987.88674,0.0002141,2]
[338895044,1727035849472,-1987.88674,0.0002141,2]
[338895045,1727035849482,-818.259335,0.0002141,2]
[338895046,1727035849492,-818.259335,0.0002141,2]
[338895047,1727035849501,-151.0,0.0002141,2]
[338895048,1727035849511,-477.173741,0.0002141,2]
[338895049,1727035849520,-477.173741,0.0002141,2]
[338895050,1727035849530,-3000.0,0.0002141,2]
[338895051,1727035849541,-543.669945,0.0002141,2]
[338895052,1727035849550,-543.669945,0.0002141,2]
[338895053,1727035849560,-151.0,0.0002141,2]
[338895054,1727035849569,-151.0,0.00021411,2]
[338895055,1727035849579,-151.0,0.00021411,2]
[338895056,1727035849590,-5525.986398,0.00021419,2]
[338895057,1727035849602,-5525.986398,0.00021419,2]
[338895058,1727035849611,-1017.543906,0.00021419,2]
[338895059,1727035849620,-1017.543906,0.00021419,2]
[338895060,1727035849693,-602.836695,0.00021419,2]
[338895061,1727035849711,-602.836695,0.00021419,2]
[338895062,1727035849721,-433.18014,0.00021419,2]
[338895063,1727035849731,-433.18014,0.00021419,2]
[338895064,1727035849740,-151.802188,0.0002142,2]
[338895065,1727035849749,-151.0,0.0002142,2]
[338895066,1727035849760,-151.0,0.0002142,2]
[338895067,1727035849770,-160.619752,0.0002142,2]
[338895068,1727035849780,-160.619752,0.0002142,2]
[338895069,1727035849790,-151.0,0.0002142,2]
[338895070,1727035849799,-151.0,0.0002142,2]
[338895071,1727035849809,-151.0,0.0002142,2]
[338895072,1727035849818,-151.0,0.0002142,2]
[338895073,1727035849828,-151.0,0.0002142,2]
[338895074,1727035849837,-151.0,0.0002142,2]
[338895075,1727035849846,-153.266844,0.0002142,2]
[338895076,1727035849856,-153.266844,0.0002142,2]
[338895077,1727035849865,-596.506,0.0002142,2]
[338895078,1727035849875,-191.12889684,0.0002142,2]
[338895079,1727035849885,-877.570684,0.0002142,2]
[338895080,1727035849894,-877.570684,0.0002142,2]
[338895081,1727035849904,-151.0,0.0002142,2]
[338895082,1727035849913,-170.585669,0.0002142,2]
[338895083,1727035849924,-170.585669,0.0002142,2]
[338895084,1727035849934,-1791.288609,0.0002142,2]
[338895085,1727035849944,-1791.288609,0.0002142,2]
[338895086,1727035849955,-3000.0,0.0002142,2]
[338895087,1727035849965,-151.0,0.0002142,2]
[338895088,1727035849977,-151.0,0.0002142,2]
[338895089,1727035849986,-168.206517,0.0002142,2]
[338895090,1727035849996,-168.206517,0.0002142,2]
[338895091,1727035850006,-722.251436,0.0002142,2]
[338895092,1727035850015,-722.251436,0.0002142,2]
[338895093,1727035850025,-969.570127,0.0002142,2]
[338895094,1727035850035,-969.570127,0.0002142,2]
[338895095,1727035850045,-151.0,0.0002142,2]
[338895096,1727035850054,-151.0,0.0002142,2]
[338895097,1727035850064,-331.081023,0.0002142,2]
[338895098,1727035850073,-331.081023,0.0002142,2]
[338895099,1727035850083,-195.530058,0.0002142,2]
[338895100,1727035850093,-195.530058,0.0002142,2]
[338895101,1727035850103,-483.05176,0.0002142,2]
[338895102,1727035850113,-483.05176,0.0002142,2]
[338895103,1727035850123,-151.0,0.00021421,2]
[338895104,1727035850132,-151.799153,0.00021421,2]
[338895105,1727035850141,-151.268019,0.00021421,2]
[338895106,1727035850151,-151.0,0.00021421,2]
[338895107,1727035850161,-151.268019,0.00021421,2]
[338895108,1727035850170,-151.0,0.00021429,2]
[338895109,1727035850179,-177.485725,0.00021429,2]
[338895110,1727035850188,-177.485725,0.00021429,2]
[338895111,1727035850197,-151.0,0.00021429,2]
[338895112,1727035850207,-1987.88674,0.00021429,2]
[338895113,1727035850216,-1987.88674,0.00021429,2]
[338895114,1727035850225,-818.259335,0.00021429,2]
[338895115,1727035850234,-818.259335,0.00021429,2]
[338895116,1727035850243,-151.0,0.00021429,2]
[338895117,1727035850254,-3000.0,0.00021429,2]
[338895118,1727035850264,-3000.0,0.00021429,2]
[338895119,1727035850273,-3000.0,0.00021429,2]
[338895120,1727035850283,-3000.0,0.00021429,2]
[338895121,1727035850292,-2342.87900107,0.00021429,2]
[338895122,1727035850301,-477.173741,0.00021429,2]
[338895123,1727035850311,-477.173741,0.00021429,2]
[338895124,1727035850321,-1476.26991,0.00021429,2]
[338895125,1727035850331,-1476.26991,0.00021429,2]
[338895126,1727035850341,-297.977605,0.00021429,2]
[338895127,1727035850353,-651.307974,0.00021429,2]
[338895128,1727035850362,-297.977605,0.00021429,2]
[338895129,1727035850372,-651.307974,0.00021429,2]
[338895130,1727035850381,-336.605711,0.00021429,2]
[338895131,1727035850391,-336.605711,0.00021429,2]
[338895132,1727035850400,-151.0,0.0002143,2]
[338895133,1727035850410,-1000.0,0.0002143,2]
[338895134,1727035850420,-3000.0,0.0002143,2]
[338895135,1727035850430,-151.0,0.0002144,2]
[338895136,1727035850440,-160.619752,0.0002144,2]
[338895137,1727035850449,-160.619752,0.0002144,2]
[338895138,1727035850459,-3000.0,0.0002144,2]
[338895139,1727035850479,-420.300099,0.00021447,2]
[338895140,1727035850491,-420.300099,0.00021447,2]
[338895141,1727035850501,-5525.986398,0.0002145,2]
[338895142,1727035850511,-5525.986398,0.0002145,2]
[338895143,1727035850522,-1017.543906,0.0002145,2]
[338895144,1727035850532,-1017.543906,0.0002145,2]
[338895145,1727035850542,-3000.0,0.0002145,2]
[338895146,1727035850552,-151.0,0.0002145,2]
[338895147,1727035850562,-543.669945,0.0002145,2]
[338895148,1727035850571,-543.669945,0.0002145,2]
[338895149,1727035850581,-237.852974,0.0002145,2]
[338895150,1727035850591,-151.0,0.0002145,2]
[338895151,1727035850601,-246.154104,0.0002145,2]
[338895152,1727035850611,-151.0,0.00021452,2]
[338895153,1727035850621,-151.0,0.00021453,2]
[338895154,1727035850631,-151.0,0.0002146,2]
[338895155,1727035850641,-3000.0,0.0002146,2]
[338895156,1727035850651,-151.0,0.0002147,2]
[338895157,1727035850661,-151.0,0.0002147,2]
[338895158,1727035850671,-877.570684,0.0002147,2]
[338895159,1727035850681,-877.570684,0.0002147,2]
[338895160,1727035850691,-151.0,0.0002147,2]
[338895161,1727035850701,-170.585669,0.0002147,2]
[338895162,1727035850710,-170.585669,0.0002147,2]
[338895163,1727035850720,-3000.0,0.0002147,2]
[338895164,1727035850730,-3000.0,0.0002148,2]
[338895165,1727035850740,-727.01054018,0.0002148,2]
[338895166,1727035850750,-151.0,0.00021484,2]
[338895167,1727035850760,-177.485725,0.00021484,2]
[338895168,1727035850770,-177.485718,0.00021484,2]
[338895169,1727035850779,-151.0,0.0002149,2]
[338895170,1727035850789,-151.0,0.0002149,2]
[338895171,1727035850799,-153.266844,0.0002149,2]
[338895172,1727035850809,-153.266844,0.0002149,2]
[338895173,1727035850820,-151.268019,0.0002149,2]
[338895174,1727035850830,-151.0,0.0002149,2]
[338895175,1727035850839,-151.268019,0.0002149,2]
[338895176,1727035850851,-3000.0,0.0002149,2]
[338895177,1727035850860,-3000.0,0.000215,2]
[338895178,1727035850870,-622.0,0.000215,2]
[338895179,1727035850880,-3000.0,0.0002151,2]
[338895180,1727035850890,-151.0,0.0002151,2]
[338895181,1727035850900,-151.0,0.0002151,2]
[338895182,1727035850909,-168.206517,0.0002151,2]